[Event "Champions Chess Tour  Aimchess Rapid 2023"]
[Site "Chess.com"]
[Date "2023.07.12"]
[Round "3"]
[White "Carlsen, Magnus"]
[Black "Abdusattorov, Nodirbek"]
[Result "1-0"]
[WhiteElo "2903"]
[BlackElo "2831"]
[ECO "B42"]
[EventDate "2023.??.??"]
[Annotator "rafael"]
[PlyCount "85"]
[Beauty "7491765149726"]
[EventType "rapid"]
[TimeControl "900+3"]

1.e4 c5 2.Nf3 e6 3.d4 cxd4 4.Nxd4 Nf6 5.Bd3 {Much less common than 5.Nc3. Carlsen usually finds his own ways to play the openings, most of the time avoiding variations that are too theoretical. Everybody recognizes his brilliant play, especially in the endgame, but I think his legacy in opening theory is no less important and usually underrated.} 5...d6 {Certainly not the way to challenge, theoretically speaking, white's previous move. Abdusattorov makes a practical choice to accept a hedgehog pawn structure.} ( 5...Nc6 {is the critical move.} ) 6.c4 Be7 7.Nc3 a6 8.Be3 O-O 9.O-O b6 10.f4 Qc7 11.Rc1 Nbd7 {Black's position became very passive and one might think that White has a comfortable position, but actually it's already winning after Carlsen's next move.} 12.g4 $1 {[%c_effect g4;square;g4;type;GreatFind;persistent;true]} ( 12.b4 {is the move most people would play, but the move played in the game is even better.} ) 12...Nc5 13.Bb1 Bb7 14.Qf3 g6 15.b4 ( 15.g5 $1 {[%c_effect g5;square;g5;type;GreatFind;persistent;true] is more accurate.} 15...Nh5 ( 15...Ne8 16.b4 Nd7 17.Qh3 {followed by f4-f5 with a crushing attack.} ) 16.f5 $1 {[%c_effect f5;square;f5;type;GreatFind;persistent;true] Black's knight is far from the e5-square and this move becomes very strong.} 16...exf5 17.Nxf5 {with a winning initiative, for instance:} 17...gxf5 18.Qxh5 fxe4 19.Bd4 {and White will soon checkmate.} ) 15...Ncd7 16.g5 ( 16.Qh3 {The attack is still very strong after f4-f5.} ) 16...Nh5 {The situation is not so clear anymore.} 17.Nd5 $5 {[%c_effect d5;square;d5;type;Interesting;persistent;true] A bold sacrifice.} ( 17.Qh3 {is natural, again with the idea of f4-f5, but now Black is surviving after} 17...Qd8 $1 {[%c_effect d8;square;d8;type;GreatFind;persistent;true]} ) 17...Qd8 {A good decision. Accepting the knight leads to a chaotic position.} ( 17...exd5 18.Nf5 $1 {[%c_effect f5;square;f5;type;GreatFind;persistent;true] The best way to attack.} ( {After} 18.cxd5 Qd8 {the compensation is not clear.} ) 18...Rae8 ( 18...gxf5 $2 {[%c_effect f5;square;f5;type;Mistake;persistent;true]} 19.cxd5 Qd8 20.Qxh5 {with a winning attack.} ) 19.Bd4 f6 20.cxd5 Qd8 {White's initiative is very dangerous, but not yet winning.} ) 18.Nxe7+ Qxe7 19.Qh3 {The worst is over for Black.} 19...Rae8 ( 19...a5 $1 {[%c_effect a5;square;a5;type;GreatFind;persistent;true] is the best way to start a counterplay. If White tries to keep the structure intact, then the rook becomes active after} 20.a3 axb4 21.axb4 Ra3 $1 {[%c_effect a3;square;a3;type;GreatFind;persistent;true]} ) 20.Rce1 Qd8 21.Ne2 $1 {[%c_effect e2;square;e2;type;GreatFind;persistent;true] A subtle move.} ( 21.f5 {leads to an unclear position after} 21...exf5 22.Nxf5 ( 22.exf5 $6 {[%c_effect f5;square;f5;type;Inaccuracy;persistent;true]} 22...Ne5 {is better for Black.} ) 22...gxf5 23.Qxh5 Bxe4 ) 21...e5 $2 {[%c_effect e5;square;e5;type;Mistake;persistent;true] This move is usually a mistake when White is able to reply with f4-f5. This position is not an exception.} ( 21...f6 22.Nd4 $1 {[%c_effect d4;square;d4;type;GreatFind;persistent;true] is good for White.} ) ( 21...f5 $1 {[%c_effect f5;square;f5;type;GreatFind;persistent;true] is the best way to fight.} ) 22.f5 f6 23.Qh4 Rf7 24.Rd1 $1 {[%c_effect d1;square;d1;type;GreatFind;persistent;true] Carlsen is not in a hurry.} ( 24.Ng3 $6 {[%c_effect g3;square;g3;type;Inaccuracy;persistent;true] allows Black to sacrifice a pawn and achieve a good position after} 24...Nf4 25.Bxf4 exf4 26.Qxf4 fxg5 27.Qxd6 Ne5 ) 24...Qc7 25.Bd3 Ref8 26.gxf6 ( 26.Rf2 {is also possible, preparing to double rooks on the f-file.} ) 26...Ndxf6 27.Bh6 {Black needs to sacrifice something in order to complicate the game, but how $2} 27...g5 $5 {[%c_effect g5;square;g5;type;Interesting;persistent;true] Black is losing, but this is an interesting practical attempt.} ( 27...Re8 {Passive play is not enough:} 28.fxg6 hxg6 29.Ng3 {with a much better position for White.} ) ( 27...b5 $1 {[%c_effect b5;square;b5;type;GreatFind;persistent;true] is the computer's suggestion, simply sacrificing the exchange. Not an easy move to play, to say the least.} ) 28.Qxg5+ Kh8 29.Bxf8 Rxf8 30.Ng3 Rg8 31.Qh6 Qf7 {Everybody knows that White must be winning, but with little time on the clock it's not easy to demonstrate it and Black finally has an active position, at the cost of material. One thing the computer is not able to teach us is how difficult a position is to play. Maybe this is an idea for future engine development: some indication if the position is winning with many moves (easy) or if you need to play with a lot of precision (difficult).} 32.Be2 ( 32.Rf2 $1 {[%c_effect f2;square;f2;type;GreatFind;persistent;true] The type of computer move that not even Carlsen can play with little time.} 32...Nxg3 33.hxg3 Rxg3+ 34.Rg2 Rxg2+ 35.Kxg2 Nxe4 36.Kg1 {Only a computer can play like this and I could not believe my eyes, thinking, what was the machine's idea against the capture on f5 $2} 36...Qxf5 {Now the point is:} 37.Rd2 $3 {[%c_effect d2;square;d2;type;Brilliant;persistent;true] The only winning move. The rook protects the king from the checks} ) 32...Nf4 $2 {[%c_effect f4;square;f4;type;Mistake;persistent;true]} ( 32...Nxg3 {gives better chances.} 33.hxg3 Nxe4 34.g4 Ng3 35.Qxd6 $1 {[%c_effect d6;square;d6;type;GreatFind;persistent;true]} 35...Nxe2+ 36.Kf2 Re8 $1 {[%c_effect e8;square;e8;type;GreatFind;persistent;true] with total chaos on the board.} ) 33.Rxf4 {The human move. Capturing this knight is irresistible.} ( 33.Bf3 {is also good.} ) 33...exf4 34.Qxf4 Nxe4 35.Kf1 $1 {[%c_effect f1;square;f1;type;GreatFind;persistent;true] Very accurate.} ( 35.Bf3 {is not good:} 35...Nxg3 36.hxg3 Bxf3 37.Qxf3 Qxc4 ) 35...Qg7 36.f6 $5 {[%c_effect f6;square;f6;type;Interesting;persistent;true] An interesting and surprising move. The machine claims that both 36.Bd3 and 36.Qe3 are winning.} ( 36.Bf3 {again is bad:} 36...Nxg3+ 37.hxg3 Bxf3 38.Qxf3 Qe5 {with escaping chances.} ) ( 36.Bd3 ) ( 36.Qe3 ) 36...Nxf6 37.Ke1 $2 {[%c_effect e1;square;e1;type;Mistake;persistent;true] This move lets a good part of the advantage slip. Both players were really short of time and it's nearly impossible to play this position well.} ( 37.Qxd6 $1 {[%c_effect d6;square;d6;type;GreatFind;persistent;true] is better.} ) 37...Qe7 $2 {[%c_effect e7;square;e7;type;Mistake;persistent;true]} ( 37...Re8 $1 {[%c_effect e8;square;e8;type;GreatFind;persistent;true] is the best chance.} 38.Rxd6 ( 38.Qxd6 Ne4 ) 38...Ne4 39.Nxe4 Bxe4 {and Black has chances because white's king is vulnerable.} ) 38.Qxd6 $1 {[%c_effect d6;square;d6;type;GreatFind;persistent;true]} 38...Qg7 39.Qxb6 {White just captures all the pawns.} 39...Re8 40.Rd8 $1 {[%c_effect d8;square;d8;type;GreatFind;persistent;true] An important move that ends any attacking attempt.} 40...Rxd8 41.Qxd8+ Ng8 42.Nf5 Qc3+ 43.Kf2 1-0

[Event "E Women's Chess World Championship"]
[Site "Chess.com"]
[Date "2023.07.06"]
[Round "2"]
[White "Ju, Wenjun"]
[Black "Lei, Tingjie"]
[Result "1/2-1/2"]
[WhiteElo "2564"]
[BlackElo "2554"]
[ECO "B14"]
[EventDate "2023.??.??"]
[Annotator "rafael"]
[PlyCount "80"]
[Beauty "6117241389063"]
[EventType "match"]
[EventRounds "2"]
[EventCountry "FID"]
[TimeControl "40/5400+30:1800+30"]

1.d4 d5 2.c4 e6 3.Nf3 Nf6 4.Nc3 c5 5.e3 ( 5.cxd5 {is White's main option. A quick overview of this opening:} 5...cxd4 {The modern approach, trying to achieve a draw with forcing play.} ( 5...exd5 {The old Tarrasch, once a Kasparov favorite, that is now getting back to fashion again thanks to some new ideas.} ) ( 5...Nxd5 {The solid and passive Semi-Tarrasch, a reliable weapon that I can't play with Black because I used to have nightmares after reading the analysis of the famous game Polugaevsky-Tal from the former's. book \"Grandmaster Preparation.\"} ) ) 5...Nc6 ( 5...cxd4 6.exd4 {Transposes to a position that can be achieved with many move orders, including the Panov Variation against the Caro-Kann.} ) 6.cxd5 ( 6.a3 {is a clever waiting move that is very popular.} ) 6...exd5 ( 6...Nxd5 {is also possible.} ) 7.Bb5 cxd4 8.exd4 ( 8.Nxd4 {was played recently by Caruana in a classical game.} 8...Bd7 9.O-O Bd6 10.Nf3 Be6 11.b3 a6 12.Bd3 Ne5 13.Nxe5 Bxe5 14.Bb2 Rc8 15.Rc1 O-O 16.f4 Bc7 17.Ne2 Bb6 18.Bd4 Bxd4 19.Nxd4 Qa5 20.Qe2 {with a balanced position which later ended in a win for White. Caruana-Nepomniachtchi, Bucharest 2023.} ) 8...Bd6 9.O-O O-O 10.Bg5 Bg4 {The bishops have a curious dynamic in this variation. They are moving around all the time, pinning pieces and trying to unpin others.} 11.Be2 {The bishop comes back to help the f3-knight. Both players show good knowledge of the latest developments in this fashionable line.} 11...Be6 {The bishops keep moving. This one comes back to secure the d5-pawn. 11...Re8 is the most popular move.} ( 11...Re8 ) 12.Re1 h6 13.Bh4 Rc8 ( 13...Re8 {was played by Nepomniachtchi:} 14.Bb5 $1 {[%c_effect b5;square;b5;type;GreatFind;persistent;true] Time to go back for the pin. Is there any other opening where the bishops from both sides do so much work $2} 14...g5 15.Bg3 Bxg3 ( 15...Bg4 $1 {[%c_effect g4;square;g4;type;GreatFind;persistent;true] is better.} ) 16.hxg3 Bg4 17.Bxc6 bxc6 18.Qd3 Bxf3 19.gxf3 Qd6 20.Kg2 {with an advantage for White in Mamedyarov-Nepomniachtchi, Zagreb (Rapid) 2022.} ) 14.a3 {It's not very clear what this move accomplishes.} ( 14.Qd2 {is a better way to fight for the advantage.} ) 14...Re8 {A new move.} ( 14...a6 {was played in Murshed-Roghani, Kolkata 2001.} ) 15.Bb5 {It's not so easy for White to make a useful move.} ( 15.Rc1 {is natural, but the rook is not comfortable here after} 15...Bf4 ) ( 15.Qd2 {is possible, although after a2-a3 White has to worry about Nc6-a5.} ) 15...a6 {Asking the bishop to take a decision. Considering that White's capture on c6 is unpleasant, maybe playing 15...g5 first was more accurate.} ( 15...g5 $1 {[%c_effect g5;square;g5;type;GreatFind;persistent;true]} 16.Bg3 Bg4 {with a good position for Black.} ) 16.Ba4 $6 {[%c_effect a4;square;a4;type;Inaccuracy;persistent;true] Who says A, must say B. If the bishop goes to b5, it must be ready to capture the knight.} ( 16.Bxc6 {This makes more sense.} 16...bxc6 {This capture is necessary, since taking with the rook loses a pawn.} ( 16...Rxc6 17.Bxf6 Qxf6 18.Nxd5 {Black's compensation for the pawn doesn't look enough for equality.} ) 17.Qd3 {with a small advantage for White. Certainly better than what happens in the game.} ) 16...b5 17.Bc2 g5 {The bishops keep moving, for lack of a better option.} 18.Bg3 {Whenever g5 is played in the world, there's someone considering taking the pawn with the knight, sacrificing a piece and going for the glory. Unfortunately, the cases when these sacs are actually good amount to approximately 3\%, according to the latest estimate.} ( 18.Nxg5 $2 {[%c_effect g5;square;g5;type;Mistake;persistent;true]} 18...hxg5 19.Bxg5 Kg7 {The only attack you see on the board is an attack of laughter.} ) 18...Bxg3 19.hxg3 Qb6 20.Qd2 Bg4 $1 {[%c_effect g4;square;g4;type;GreatFind;persistent;true] Another bishop move. I have lost count of how many times they went back and forth. With this pawn structure, the bishop has an unusual peace of mind on the g4-square, never having to worry what to do against h2-h3. The same peace of mind is not achieved by the d4-pawn, which needs constant protection. Black's position is more pleasant.} 21.Rxe8+ Rxe8 22.Rd1 Kf8 {These patient moves are not easy to play.} ( 22...Ne4 {is tempting, but nothing serious happens after} 23.Qd3 ( 23.Nxd5 $2 {[%c_effect d5;square;d5;type;Mistake;persistent;true] loses to} 23...Nxd2 24.Nxb6 Nxf3+ 25.gxf3 Bxf3 ) ) ( 22...b4 23.axb4 Nxb4 24.Na4 Qb5 25.Nc3 {with equality.} ) ( 22...Na5 {is an interesting option, heading with the knight to c4.} ) 23.Qd3 {Anticipating Black's knight move to e4.} 23...b4 24.Na4 Qb5 25.axb4 Qxd3 26.Rxd3 Nxb4 27.Rd2 {Black has some pressure in the endgame due to her more active pieces.} 27...Nd7 ( 27...Ne4 {The aggressive knight move is again tempting, but White has no problems after} 28.Bxe4 dxe4 29.Ne5 Be6 30.Nc5 ) ( 27...Rc8 {forces White's knight to go back.} 28.Nc3 {Black's position is more comfortable, but there's no clear way to improve it.} ( 28.Nc5 {is not so good after} 28...Nd7 $1 {[%c_effect d7;square;d7;type;GreatFind;persistent;true] with unpleasant pressure.} ) ) 28.Bb3 Bf5 ( 28...Bxf3 $1 {[%c_effect f3;square;f3;type;GreatFind;persistent;true] is the best way to fight for a win:} 29.gxf3 Re1+ 30.Kg2 Ke7 {The bishop will be placed on d6 and Black's pieces are active.} ) 29.Nc3 $1 {[%c_effect c3;square;c3;type;GreatFind;persistent;true]} ( 29.Nc5 {is not so good after} 29...Rc8 ) 29...g4 {After this move, the position simplifies and the game peters out to a draw.} 30.Ne5 Nxe5 ( 30...Nb6 31.f3 $1 {[%c_effect f3;square;f3;type;GreatFind;persistent;true] equalizing the game.} ) 31.dxe5 Rxe5 32.Nxd5 Nxd5 33.Bxd5 Re1+ 34.Kh2 a5 35.f3 h5 36.Rd4 Kg7 37.Ra4 Re5 38.Rd4 Re1 39.Ra4 Re5 40.Rd4 Re1 1/2-1/2